bitfinex/quotes_BTCUSD_20250101
["timestamp","ask_amount","ask_price","bid_price","bid_amount"]
[1735752289254,0.152,94106.0,94096.0,0.0001704]
[1735752289643,0.2489804,94105.0,94096.0,0.0001704]
[1735752290217,0.0364524,94105.0,94096.0,0.0001704]
[1735752290433,0.2489824,94105.0,94096.0,0.0001704]
[1735752291249,0.0364524,94105.0,94096.0,0.0001704]
[1735752291434,0.0374524,94105.0,94096.0,0.0001704]
[1735752291668,0.01877085,94104.0,94096.0,0.0001704]
[1735752293141,0.001,94105.0,94096.0,0.0001704]
[1735752293337,0.15,94109.0,94096.0,0.0001704]
[1735752293777,0.15,94107.0,94096.0,0.0001704]
[1735752294195,0.001,94104.0,94096.0,0.0001704]
[1735752294815,0.15,94107.0,94096.0,0.0001704]
[1735752295044,0.152,94107.0,94096.0,0.0001704]
[1735752296422,0.15,94107.0,94096.0,0.0001704]
[1735752296608,0.001,94104.0,94096.0,0.0001704]
[1735752297049,0.38855253,94109.0,94096.0,0.0001704]
[1735752297451,0.002,94107.0,94096.0,0.0001704]
[1735752297856,0.38855253,94109.0,94096.0,0.0001704]
[1735752298295,0.39055253,94109.0,94096.0,0.0001704]
[1735752298656,0.39055253,94109.0,94097.0,0.0493]
[1735752298878,0.39055253,94109.0,94098.0,0.0125441]
[1735752299527,0.15,94107.0,94097.0,0.0493]
[1735752300692,0.38855253,94107.0,94097.0,0.0493]
[1735752300860,0.15,94105.0,94097.0,0.0493]
[1735752302249,0.38855253,94105.0,94097.0,0.0493]
[1735752303263,0.38955253,94105.0,94097.0,0.0493]
[1735752303643,0.38855253,94105.0,94097.0,0.0493]
[1735752304403,0.38955253,94105.0,94097.0,0.0493]
[1735752304630,0.15,94103.0,94097.0,0.0493]
[1735752305078,0.15,94103.0,94097.0,0.0618441]
[1735752305658,0.15,94103.0,94098.0,0.0758]
[1735752306502,0.38955253,94103.0,94098.0,0.0758]
[1735752306925,0.38955253,94103.0,94098.0,0.17978632]
[1735752307144,0.23855253,94103.0,94099.0,0.10398632]
[1735752307355,0.23955253,94103.0,94100.0,0.0758]
[1735752307566,0.23955253,94103.0,94101.0,0.24508199]
[1735752307773,0.23955253,94103.0,94102.0,0.0758]
[1735752307999,0.23855253,94103.0,94102.0,0.17978632]
[1735752308759,0.23855253,94108.0,94103.0,0.0758]
[1735752308967,0.23855253,94108.0,94104.0,0.17978632]
[1735752309165,0.23855253,94108.0,94105.0,0.0758]
[1735752309398,0.23855253,94108.0,94106.0,0.10398632]
[1735752309604,8.52e-05,94113.0,94107.0,0.0758]
[1735752309811,8.52e-05,94113.0,94108.0,0.15128632]
[1735752309992,8.52e-05,94113.0,94109.0,0.02516286]
[1735752310191,8.52e-05,94113.0,94110.0,0.17978632]
[1735752310401,8.52e-05,94113.0,94111.0,0.081]
[1735752310605,8.52e-05,94113.0,94112.0,0.18498632]
[1735752312985,8.52e-05,94113.0,94112.0,0.005]
[1735752313193,0.02135204,94113.0,94112.0,0.005]
[1735752313609,8.52e-05,94113.0,94112.0,0.004]
[1735752313785,0.15,94106.0,94099.0,0.0451]
[1735752314046,0.15,94111.0,94100.0,0.10398632]
[1735752314285,0.15,94107.0,94100.0,0.10398632]
[1735752314421,0.15,94109.0,94100.0,0.10398632]
[1735752314620,0.0766242,94110.0,94100.0,0.12702905]
[1735752314830,0.2125952,94113.0,94100.0,0.12702905]
[1735752315525,0.2125952,94113.0,94100.0,0.10398632]
[1735752315805,0.2135952,94113.0,94100.0,0.10398632]
[1735752316197,0.2125952,94113.0,94100.0,0.10398632]
[1735752316646,0.2135952,94113.0,94100.0,0.10398632]
[1735752317129,0.0010852,94113.0,94101.0,0.081]
[1735752317384,0.0010852,94113.0,94102.0,0.12702905]
[1735752318319,0.0010852,94113.0,94103.0,0.081]
[1735752318525,0.0010852,94113.0,94104.0,0.10398632]
[1735752318760,8.52e-05,94113.0,94104.0,0.10398632]
[1735752318971,8.52e-05,94113.0,94105.0,0.081]
[1735752319187,0.16759082,94125.0,94108.0,0.081]
[1735752319392,0.16759082,94125.0,94109.0,0.12699495]
[1735752319601,0.15,94124.0,94110.0,0.081]
[1735752319812,0.15,94124.0,94111.0,0.10398632]
[1735752320406,0.001,94113.0,94111.0,0.10398632]
[1735752321850,0.15,94124.0,94111.0,0.10398632]
[1735752322079,0.0010853,94124.0,94112.0,0.02300863]
[1735752322290,0.0010853,94124.0,94113.0,0.18498632]
[1735752322591,8.53e-05,94124.0,94113.0,0.18498632]
[1735752326863,0.212487,94123.0,94113.0,0.18498632]
[1735752328857,0.212497,94119.0,94113.0,0.18498632]
[1735752329067,0.213487,94123.0,94113.0,0.18498632]
[1735752329689,0.212487,94123.0,94113.0,0.18498632]
[1735752330113,0.212498,94119.0,94113.0,0.18498632]
[1735752330330,0.212487,94123.0,94113.0,0.18498632]
[1735752331134,8.53e-05,94124.0,94114.0,0.0777]
[1735752331379,8.53e-05,94124.0,94115.0,0.10398632]
[1735752331668,0.212487,94123.0,94115.0,0.10398632]
[1735752331901,0.212487,94123.0,94116.0,0.00727171]
[1735752332123,0.212487,94123.0,94117.0,0.10398632]
[1735752332295,0.213487,94123.0,94117.0,0.11128111]
[1735752332875,0.212487,94123.0,94117.0,0.11128111]
[1735752333076,0.213487,94123.0,94117.0,0.11128111]
[1735752333481,0.212487,94123.0,94117.0,0.11128111]
[1735752333881,0.213487,94123.0,94117.0,0.11128111]
[1735752334282,0.2135723,94123.0,94117.0,0.11128111]
[1735752335285,0.2135723,94123.0,94118.0,0.02119897]
[1735752335616,0.2135723,94123.0,94119.0,0.10398632]
[1735752335817,0.2135723,94123.0,94119.0,0.11123119]
[1735752336189,0.2125723,94123.0,94119.0,0.11123119]
[1735752336394,8.53e-05,94123.0,94119.0,0.11123119]
[1735752336591,0.0010853,94123.0,94120.0,0.02101801]
[1735752336789,0.0010853,94123.0,94121.0,0.10398632]
[1735752336990,8.53e-05,94123.0,94121.0,0.10398632]
[1735752337214,8.53e-05,94123.0,94122.0,0.1268]
[1735752337215,0.0010853,94123.0,94122.0,0.1268]
[1735752337417,0.0010853,94123.0,94122.0,0.23803119]
[1735752339079,8.53e-05,94123.0,94122.0,0.23803119]
[1735752339291,0.0010853,94123.0,94122.0,0.23803119]
[1735752339653,8.53e-05,94123.0,94122.0,0.23803119]
[1735752340059,0.0010853,94123.0,94122.0,0.23803119]
[1735752342885,0.0010853,94123.0,94122.0,0.2618393]
[1735752343599,0.0010853,94123.0,94122.0,0.23803119]
[1735752347610,0.0010853,94123.0,94122.0,0.23330267]
[1735752351245,0.0010853,94123.0,94122.0,0.25630267]
[1735752351455,8.53e-05,94123.0,94122.0,0.25630267]
[1735752351613,0.0010853,94123.0,94122.0,0.25630267]
[1735752353204,0.0010853,94123.0,94122.0,0.28193793]
[1735752355397,0.0010853,94123.0,94122.0,0.25630267]
[1735752357628,0.0010853,94123.0,94122.0,0.23330267]
[1735752358821,0.0010853,94123.0,94122.0,0.23347327]
[1735752363629,0.0010853,94123.0,94122.0,0.11140179]
[1735752364612,0.0010853,94123.0,94122.0,0.00741547]
[1735752365036,0.0010853,94123.0,94122.0,0.0001706]
[1735752384592,0.0010853,94123.0,94122.0,0.10415692]
[1735752384737,0.0010853,94123.0,94122.0,0.1901817]
[1735752386989,0.3635723,94123.0,94122.0,0.00739538]
[1735752387191,0.37087779,94123.0,94122.0,0.0001706]
[1735752388245,0.3635723,94123.0,94122.0,0.0001706]
[1735752398488,8.53e-05,94124.0,94122.0,0.0001706]
[1735752399666,0.212487,94123.0,94122.0,0.0001706]
[1735752404823,0.2125723,94123.0,94122.0,0.0001706]
[1735752414591,0.212499,94118.0,94109.0,0.02209252]
[1735752414790,0.212499,94118.0,94110.0,0.10398632]
[1735752415073,0.212499,94118.0,94110.0,0.11120495]
[1735752416111,0.212499,94118.0,94110.0,0.11320495]
[1735752419973,0.212499,94118.0,94111.0,0.023]
[1735752420183,0.424998,94118.0,94113.0,0.023]
[1735752420397,0.424998,94118.0,94115.0,0.023]
[1735752420605,0.424998,94118.0,94115.0,0.12698632]
[1735752420981,0.424998,94118.0,94116.0,0.00721863]
[1735752422611,0.424998,94118.0,94116.0,0.00921863]
[1735752422787,0.212499,94118.0,94116.0,0.00921863]
[1735752423024,8.53e-05,94123.0,94117.0,0.25058632]
[1735752423248,8.53e-05,94123.0,94118.0,0.00721936]
[1735752423449,8.53e-05,94123.0,94119.0,0.12698632]
[1735752423863,8.53e-05,94123.0,94121.0,0.023]
[1735752424072,8.53e-05,94123.0,94122.0,0.12698632]
[1735752424246,8.53e-05,94123.0,94122.0,0.13420568]
[1735752437298,8.53e-05,94123.0,94122.0,0.15998625]
[1735752437529,8.53e-05,94123.0,94122.0,0.23898625]
[1735752438661,8.53e-05,94123.0,94122.0,0.21820568]
[1735752439676,8.53e-05,94123.0,94122.0,0.21920568]
[1735752460642,8.53e-05,94123.0,94122.0,0.26780568]
[1735752461220,8.53e-05,94123.0,94122.0,0.38378126]
[1735752461647,0.0001706,94136.0,94128.0,0.484076]
[1735752461807,0.0001706,94136.0,94128.0,0.76994864]
[1735752462013,0.0001706,94136.0,94128.0,0.77715013]
[1735752462621,0.0001706,94136.0,94128.0,0.8266676]
[1735752462828,0.0001706,94136.0,94128.0,0.72268128]
[1735752463192,0.0001706,94136.0,94128.0,0.73168128]
[1735752463400,0.0001706,94136.0,94128.0,0.72370102]
[1735752464554,0.0001706,94136.0,94128.0,0.31122502]
[1735752465386,0.0001706,94136.0,94128.0,0.28866339]
[1735752465741,0.0002853,94129.0,94128.0,0.49264971]
[1735752474083,0.0002853,94129.0,94128.0,0.26566339]
[1735752474302,0.0002853,94129.0,94128.0,0.12318781]
[1735752474927,0.0002853,94129.0,94128.0,0.14618781]
[1735752490138,0.15,94142.0,94129.0,0.023]
[1735752490341,0.212448,94141.0,94131.0,0.023]
[1735752490561,0.212448,94141.0,94133.0,0.023]
[1735752491031,0.212448,94141.0,94134.0,0.0064604]
[1735752491806,0.424896,94141.0,94134.0,0.0064604]
[1735752492812,0.212448,94141.0,94134.0,0.0104604]
[1735752492986,0.212448,94141.0,94134.0,0.0074604]
[1735752493215,0.212448,94141.0,94134.0,0.0064604]
[1735752493436,0.212448,94141.0,94134.0,0.0084604]
[1735752494743,0.15,94145.0,94135.0,0.12698632]
[1735752495186,0.15,94145.0,94137.0,0.023]
[1735752495310,0.15,94145.0,94139.0,0.023]
[1735752495727,0.15,94143.0,94140.0,0.00646878]
[1735752496559,0.15,94143.0,94140.0,0.00654372]
[1735752497582,0.212436,94146.0,94140.0,0.00654372]
[1735752499081,0.212436,94146.0,94140.0,0.00754372]
[1735752499424,0.212436,94146.0,94140.0,0.00654372]
[1735752499596,0.424872,94146.0,94140.0,0.00654372]
[1735752499802,0.21244,94144.0,94140.0,0.00654372]
[1735752500011,0.21244,94144.0,94140.0,7.494e-05]
[1735752500977,0.21244,94144.0,94140.0,0.00024554]
[1735752501223,0.2125253,94144.0,94140.0,0.00024554]
[1735752501634,0.2125253,94144.0,94140.0,0.00124554]
[1735752501838,8.53e-05,94144.0,94140.0,0.00124554]
[1735752503309,8.53e-05,94144.0,94138.0,0.10398632]
[1735752503516,8.53e-05,94144.0,94138.0,0.10413616]
[1735752503777,8.53e-05,94144.0,94139.0,0.00646997]
[1735752504793,0.212442,94143.0,94139.0,0.00646997]
[1735752505541,0.212442,94143.0,94139.0,0.00746997]
[1735752505957,0.212442,94143.0,94139.0,0.00646997]
[1735752506158,0.212442,94143.0,94139.0,0.00746997]
[1735752507210,0.424884,94143.0,94139.0,0.00746997]
[1735752507387,0.15,94140.0,94139.0,0.00746997]
[1735752507594,0.15,94140.0,94139.0,0.001]
[1735752507815,0.17054101,94140.0,94139.0,0.001]
[1735752508359,0.362451,94139.0,94138.0,0.00014984]
[1735752508801,0.42889201,94139.0,94138.0,0.00014984]
[1735752510570,0.408351,94139.0,94138.0,0.00014984]
[1735752513676,0.362451,94139.0,94138.0,0.00014984]
[1735752514359,0.362451,94139.0,94138.0,0.00032044]
[1735752521887,0.60100353,94139.0,94138.0,0.00032044]
[1735752523056,0.362451,94139.0,94138.0,0.00032044]
[1735752525464,0.3625363,94139.0,94138.0,0.00032044]
[1735752527287,0.3125363,94139.0,94138.0,0.00032044]
[1735752530395,0.3125363,94139.0,94138.0,0.07952044]
[1735752545787,0.36775955,94139.0,94138.0,0.07952044]
[1735752545993,0.3125363,94139.0,94138.0,0.07952044]
[1735752560344,0.1625363,94139.0,94138.0,0.18350676]
[1735752560731,0.3125363,94139.0,94138.0,0.18999409]
[1735752565181,0.31112878,94139.0,94138.0,0.18999409]
[1735752575723,0.31112878,94139.0,94138.0,0.08600777]
[1735752575929,0.31112878,94139.0,94138.0,0.07952044]
[1735752577440,0.31112878,94139.0,94138.0,0.00032044]
[1735752595131,0.31112878,94139.0,94138.0,0.00132044]
[1735752601059,0.31112878,94139.0,94138.0,0.07642044]
[1735752602877,8.53e-05,94139.0,94138.0,0.18040676]
[1735752603036,8.53e-05,94139.0,94138.0,0.2592488]
[1735752604217,8.53e-05,94139.0,94138.0,0.27622499]
[1735752604816,8.53e-05,94139.0,94138.0,0.25160676]
[1735752605224,8.53e-05,94139.0,94138.0,0.25360676]
[1735752605434,8.53e-05,94139.0,94138.0,0.25160676]
[1735752605791,8.53e-05,94139.0,94138.0,0.25560676]
[1735752607606,8.53e-05,94139.0,94138.0,0.25460676]
[1735752607781,8.53e-05,94139.0,94138.0,0.25560676]
[1735752612232,8.53e-05,94139.0,94138.0,0.18440676]
[1735752617781,8.53e-05,94139.0,94138.0,0.19087896]
[1735752618788,8.53e-05,94139.0,94138.0,0.20996686]
[1735752620746,8.53e-05,94139.0,94138.0,0.19087896]
[1735752624811,8.53e-05,94139.0,94138.0,0.08689264]
[1735752625044,0.1500853,94139.0,94138.0,0.01179264]
[1735752625188,0.1500853,94139.0,94138.0,0.00532044]
[1735752625599,0.14598773,94139.0,94138.0,0.00532044]
[1735752626010,0.14598773,94139.0,94138.0,0.00432044]
[1735752626238,0.14598773,94139.0,94138.0,0.00532044]
[1735752626765,0.14598773,94139.0,94138.0,0.00132044]
[1735752627121,0.14598773,94139.0,94138.0,0.00432044]
[1735752628353,0.14598773,94139.0,94138.0,0.08382044]
[1735752629395,8.53e-05,94144.0,94138.0,0.18780676]
[1735752629610,8.53e-05,94144.0,94139.0,0.10398632]
[1735752629807,0.15,94143.0,94139.0,0.10398632]
[1735752630252,0.15,94143.0,94140.0,0.00648002]
[1735752630453,0.15,94143.0,94141.0,0.10398632]
[1735752630961,0.1500853,94143.0,94142.0,0.00648002]
[1735752633578,0.1500853,94143.0,94142.0,0.00748002]
[1735752634192,8.53e-05,94143.0,94142.0,0.00748002]
[1735752634397,8.53e-05,94143.0,94142.0,0.0266087]
[1735752634797,8.53e-05,94143.0,94142.0,0.00748002]
[1735752635009,0.1500853,94143.0,94142.0,0.001]
[1735752635794,0.212433,94148.0,94142.0,0.001]
[1735752636058,0.212433,94147.0,94142.0,0.001]
[1735752636843,0.424866,94147.0,94142.0,0.001]
[1735752637053,0.212442,94143.0,94141.0,0.10398632]
[1735752637263,0.212433,94147.0,94141.0,0.10398632]
[1735752638123,0.424866,94147.0,94141.0,0.10398632]
[1735752638760,0.212442,94143.0,94141.0,0.10398632]
[1735752639922,0.212442,94143.0,94141.0,0.10498632]
[1735752640343,0.212442,94143.0,94142.0,0.00648002]
[1735752640587,0.212442,94143.0,94142.0,0.11046634]
[1735752640793,0.212433,94147.0,94142.0,0.11046634]
[1735752641142,0.212433,94147.0,94143.0,0.17958632]
[1735752641576,0.212433,94147.0,94144.0,0.00648002]
[1735752641778,0.212433,94147.0,94145.0,0.10398632]
[1735752641984,0.212433,94147.0,94146.0,0.00648002]
[1735752642195,0.212433,94147.0,94146.0,0.11046634]
[1735752642640,0.2125183,94147.0,94146.0,0.11046634]
[1735752645451,0.21284221,94147.0,94146.0,0.11046634]
[1735752645687,0.26011701,94147.0,94146.0,0.00648002]
[1735752645896,0.12632019,94147.0,94139.0,0.0001706]
[1735752646113,0.212449,94140.0,94139.0,0.0001706]
[1735752646534,0.21718856,94140.0,94139.0,0.0001706]
[1735752647963,0.87249856,94140.0,94139.0,0.0001706]
[1735752648092,0.88905856,94140.0,94139.0,0.0001706]
[1735752648293,0.60860156,94140.0,94139.0,0.0001706]
[1735752648501,0.41238656,94140.0,94139.0,0.0001706]
[1735752648701,0.38998656,94140.0,94139.0,0.0001706]
[1735752648924,0.21818856,94140.0,94139.0,0.0001706]
[1735752649551,0.213449,94140.0,94139.0,0.0001706]
[1735752651441,0.212449,94140.0,94139.0,0.0001706]
[1735752651844,0.212449,94140.0,94139.0,0.0757706]
[1735752652179,0.213449,94140.0,94139.0,0.0833797]
[1735752652598,0.212449,94140.0,94139.0,0.0833797]
[1735752652779,0.213449,94140.0,94139.0,0.0757706]
[1735752654142,0.212449,94140.0,94139.0,0.0757706]
[1735752654376,0.213449,94140.0,94139.0,0.0757706]
[1735752655470,0.212449,94140.0,94139.0,0.0757706]
[1735752655685,0.213449,94140.0,94139.0,0.0757706]
[1735752661478,0.001,94140.0,94139.0,0.0757706]
[1735752661931,0.001,94140.0,94139.0,0.08226148]
[1735752662747,0.001,94140.0,94139.0,0.1862478]
[1735752663390,0.212436,94146.0,94140.0,0.0832]
[1735752663593,0.212436,94146.0,94141.0,0.18718632]
[1735752663818,8.53e-05,94147.0,94142.0,0.0832]
[1735752664055,8.53e-05,94147.0,94143.0,0.10398632]
[1735752664255,0.2125183,94147.0,94143.0,0.10398632]
[1735752664407,0.2125183,94147.0,94144.0,0.00648635]
[1735752664574,0.2125183,94147.0,94143.0,0.10398632]
[1735752664769,0.2125183,94147.0,94144.0,0.00648635]
[1735752665019,0.2125183,94147.0,94143.0,0.10398632]
[1735752665222,8.53e-05,94147.0,94145.0,0.00648635]
[1735752665395,8.53e-05,94147.0,94146.0,0.10398632]
[1735752665761,8.53e-05,94147.0,94146.0,0.11047267]
[1735752666500,8.53e-05,94147.0,94146.0,0.19367267]
[1735752666888,8.53e-05,94147.0,94146.0,0.213457]
[1735752667543,8.53e-05,94147.0,94146.0,0.214457]
[1735752667788,8.53e-05,94147.0,94146.0,0.19467267]
[1735752667980,8.53e-05,94147.0,94146.0,0.19767267]
[1735752673787,8.53e-05,94147.0,94146.0,0.22067267]
[1735752674203,8.53e-05,94147.0,94146.0,0.26597267]
[1735752674821,8.53e-05,94147.0,94146.0,0.26497267]
[1735752675472,8.53e-05,94147.0,94146.0,0.26797267]
[1735752675676,8.53e-05,94147.0,94146.0,0.26197267]
[1735752676298,8.53e-05,94147.0,94146.0,0.26297267]
[1735752676727,8.53e-05,94147.0,94146.0,0.26197267]
[1735752676947,8.53e-05,94147.0,94146.0,0.26397267]
[1735752677119,8.53e-05,94147.0,94146.0,0.27097267]
[1735752678799,8.53e-05,94147.0,94146.0,0.298087]
[1735752679446,8.53e-05,94147.0,94146.0,0.27097267]
[1735752685449,8.53e-05,94147.0,94146.0,0.26197267]
[1735752685651,8.53e-05,94147.0,94146.0,0.27097267]
[1735752685854,8.53e-05,94147.0,94146.0,0.27297267]
[1735752686031,8.53e-05,94147.0,94146.0,0.48540867]
[1735752686228,8.53e-05,94147.0,94146.0,0.563211]
[1735752686675,8.53e-05,94147.0,94146.0,0.566211]
[1735752687050,8.53e-05,94147.0,94146.0,0.563211]
[1735752687251,8.53e-05,94147.0,94146.0,0.567211]
[1735752688031,8.53e-05,94147.0,94146.0,0.558211]
[1735752688237,8.53e-05,94147.0,94146.0,0.567211]
[1735752688550,8.53e-05,94147.0,94146.0,0.58313663]
[1735752688758,8.53e-05,94147.0,94146.0,0.59213663]
[1735752689173,8.53e-05,94147.0,94146.0,0.69213663]
[1735752690633,8.53e-05,94147.0,94146.0,0.6123343]
[1735752698560,8.53e-05,94147.0,94146.0,0.7247343]
[1735752698781,8.53e-05,94147.0,94146.0,0.6123343]
[1735752699181,8.53e-05,94147.0,94146.0,0.8623343]
[1735752699677,8.53e-05,94147.0,94146.0,0.88777884]
[1735752699882,8.53e-05,94147.0,94146.0,0.99176516]
[1735752700316,8.53e-05,94147.0,94146.0,1.08740424]
[1735752703137,8.53e-05,94147.0,94146.0,0.99176516]
[1735752703835,8.53e-05,94147.0,94146.0,1.00230735]
[1735752704427,8.53e-05,94147.0,94146.0,0.99176516]
[1735752707713,8.53e-05,94147.0,94146.0,0.88777884]
[1735752708480,8.53e-05,94147.0,94146.0,0.8623343]
[1735752709707,8.53e-05,94147.0,94146.0,0.88779195]
[1735752715751,8.53e-05,94147.0,94146.0,0.9196722]
[1735752716163,8.53e-05,94147.0,94146.0,1.01531128]
[1735752717039,8.53e-05,94147.0,94146.0,1.11080034]
[1735752717344,8.53e-05,94147.0,94146.0,1.01516126]
[1735752718051,8.53e-05,94147.0,94146.0,1.11080034]
[1735752719999,8.53e-05,94147.0,94146.0,1.01516126]
[1735752721764,8.53e-05,94147.0,94146.0,0.9196722]
[1735752724403,8.53e-05,94147.0,94146.0,1.06321637]
[1735752724574,8.53e-05,94147.0,94146.0,1.04521637]
[1735752724777,8.53e-05,94147.0,94146.0,1.04121637]
[1735752725126,8.53e-05,94147.0,94146.0,1.05421637]
[1735752725278,8.53e-05,94147.0,94146.0,1.45486269]
[1735752725474,8.53e-05,94147.0,94146.0,1.45086269]
[1735752725994,8.53e-05,94147.0,94146.0,1.45786269]
[1735752726172,8.53e-05,94147.0,94146.0,1.56184901]
[1735752726559,8.53e-05,94147.0,94146.0,1.37045679]
[1735752731065,8.53e-05,94147.0,94146.0,1.26647047]
[1735752731272,8.53e-05,94147.0,94146.0,1.27072547]
[1735752732223,0.21234,94189.0,94146.0,1.27072547]
[1735752732224,0.15,94191.0,94155.0,0.0762]
[1735752732226,0.15,94191.0,94156.0,0.424826]
[1735752732429,0.362334,94191.0,94167.0,0.212386]
[1735752732632,0.362334,94191.0,94168.0,0.15862355]
[1735752732958,0.362334,94191.0,94170.0,0.023]
[1735752733168,0.00775868,94195.0,94173.0,0.212375]
[1735752733369,0.00775868,94195.0,94174.0,0.12698632]
[1735752733587,0.00775868,94195.0,94174.0,0.13340801]
[1735752733871,0.00825811,94195.0,94176.0,0.023]
[1735752734140,0.00825811,94195.0,94178.0,0.023]
[1735752734391,0.00825811,94195.0,94180.0,0.023]
[1735752734561,0.00825811,94195.0,94182.0,0.023]
[1735752734699,0.00825811,94195.0,94184.0,0.023]
[1735752734946,0.00825811,94195.0,94186.0,0.023]
[1735752735188,8.53e-05,94191.0,94188.0,0.023]
[1735752735390,8.53e-05,94191.0,94190.0,0.023]
[1735752735665,8.53e-05,94191.0,94190.0,0.12698632]
[1735752736080,8.53e-05,94191.0,94190.0,0.13340801]
[1735752739756,0.00160465,94191.0,94190.0,0.13340801]
[1735752742555,0.4682836,94259.0,94190.0,0.13340801]
[1735752742759,0.4682836,94259.0,94190.0,0.02957153]
[1735752742760,0.00081837,94196.0,94190.0,0.02957153]
[1735752742967,0.212334,94191.0,94190.0,0.00014984]
[1735752744975,0.16472227,94195.0,94190.0,0.00014984]
[1735752745615,0.362334,94191.0,94190.0,0.00014984]
[1735752745820,1.544717,94191.0,94190.0,0.00014984]
[1735752746004,1.55690947,94191.0,94190.0,0.00014984]
[1735752746210,1.49941547,94191.0,94190.0,0.00014984]
[1735752746569,1.49941547,94191.0,94190.0,0.00032044]
[1735752747612,1.19545647,94191.0,94190.0,0.00032044]
[1735752749014,1.39944204,94191.0,94190.0,4.4e-07]
[1735752749216,0.59841604,94191.0,94190.0,4.4e-07]
[1735752749696,0.59877813,94191.0,94190.0,4.4e-07]
[1735752750192,0.59877813,94191.0,94190.0,0.00100044]
[1735752750397,0.59877813,94191.0,94190.0,4.4e-07]
[1735752750606,0.59877813,94191.0,94190.0,0.00100044]
[1735752750955,2.21686813,94191.0,94190.0,0.00100044]
[1735752751187,2.18878013,94191.0,94190.0,0.00100044]
[1735752751400,2.15999713,94191.0,94190.0,0.00100044]
[1735752751796,0.59977813,94191.0,94190.0,0.00100044]
[1735752752208,2.29195513,94191.0,94190.0,4.4e-07]
[1735752752561,0.59977813,94191.0,94190.0,4.4e-07]
[1735752754132,0.69977813,94191.0,94190.0,4.4e-07]
[1735752756579,0.98545681,94191.0,94190.0,4.4e-07]
[1735752757751,0.69977813,94191.0,94190.0,4.4e-07]
[1735752759554,0.69977813,94191.0,94190.0,4e-08]
[1735752759925,0.69986343,94191.0,94190.0,4e-08]
[1735752760134,0.69898407,94191.0,94190.0,4e-08]
[1735752760647,0.59898407,94191.0,94190.0,4e-08]
[1735752761522,0.69898407,94191.0,94190.0,4e-08]
[1735752761730,0.69986343,94191.0,94190.0,4e-08]
[1735752762842,0.7001381,94191.0,94190.0,4e-08]
[1735752762994,0.7001381,94191.0,94190.0,2.07876604]
[1735752763157,2.0108401,94191.0,94190.0,1.99383004]
[1735752763359,2.0108401,94191.0,94190.0,2.00027174]
[1735752763570,1.5114121,94191.0,94190.0,1.97903774]
[1735752763785,1.5114121,94191.0,94190.0,1.95780374]
[1735752763986,1.5114121,94191.0,94190.0,1.89410174]
[1735752764769,1.5114121,94191.0,94190.0,1.85163374]
[1735752765533,1.5114121,94191.0,94190.0,1.83039974]
[1735752765736,1.5114121,94191.0,94190.0,1.80916574]
[1735752766242,1.5114121,94191.0,94190.0,1.74546374]
[1735752766453,1.5114121,94191.0,94190.0,1.70299574]
[1735752766826,1.5114121,94191.0,94190.0,1.63929374]
[1735752767037,1.5114121,94191.0,94190.0,1.61805974]
[1735752767348,1.75038584,94191.0,94190.0,1.59682574]
[1735752767759,1.75038584,94191.0,94190.0,1.57559174]
[1735752768307,1.5114121,94191.0,94190.0,1.53312374]
[1735752768511,1.5114121,94191.0,94190.0,1.49065574]
[1735752768774,1.5114121,94191.0,94190.0,1.46942174]
[1735752768965,1.5114121,94191.0,94190.0,1.40571974]
[1735752769226,1.5114121,94191.0,94190.0,1.38448574]
[1735752769785,1.5114121,94191.0,94190.0,1.36325174]
[1735752770452,1.56663535,94191.0,94190.0,7e-07]
[1735752770677,0.7001381,94191.0,94190.0,3.1e-07]
[1735752770812,0.362386,94168.0,94167.0,0.023]
[1735752771125,0.512632,94168.0,94167.0,0.02872201]
[1735752771736,0.472853,94168.0,94167.0,0.02349943]
[1735752772276,0.362386,94168.0,94167.0,0.02349943]
[1735752773316,0.362386,94168.0,94167.0,0.02649943]
[1735752773722,0.362386,94168.0,94167.0,0.02749943]
[1735752774175,0.212379,94171.0,94167.0,0.02749943]
[1735752774383,0.212375,94173.0,94167.0,0.02749943]
[1735752774551,0.212381,94170.0,94168.0,0.0757]
[1735752775005,0.212381,94170.0,94169.0,0.00522258]
[1735752775412,0.212381,94170.0,94168.0,0.0757]
[1735752775607,0.212381,94170.0,94169.0,0.00522258]
[1735752776022,0.2095982,94170.0,94168.0,0.0757]
[1735752776225,0.2095982,94170.0,94169.0,0.00522258]
[1735752776659,0.15,94169.0,94168.0,0.0757]
[1735752777821,0.151,94169.0,94168.0,0.0757]
[1735752779224,0.288167,94169.0,94168.0,0.0757]
[1735752779881,0.151,94169.0,94168.0,0.0757]
[1735752781322,0.324575,94169.0,94168.0,0.0757]
[1735752781818,0.151,94169.0,94168.0,0.0757]
[1735752782981,0.001,94169.0,94168.0,0.0987]
[1735752783377,0.001,94169.0,94168.0,0.10392394]
[1735752783600,0.001,94169.0,94168.0,0.15239454]
[1735752784020,0.001,94169.0,94168.0,0.25638086]
[1735752784427,0.001,94169.0,94168.0,0.25648868]
[1735752785857,0.212365,94178.0,94173.0,0.023]
[1735752786064,0.212365,94178.0,94175.0,0.0713]
[1735752786270,0.212365,94178.0,94177.0,0.0989]
[1735752786865,0.212365,94178.0,94177.0,0.10412394]
[1735752787041,0.213365,94178.0,94177.0,0.10412394]
[1735752787464,0.212365,94178.0,94177.0,0.10412394]
[1735752787897,0.213365,94178.0,94177.0,0.10412394]
[1735752795671,0.2134503,94178.0,94177.0,0.10412394]
[1735752796497,0.1815792,94185.0,94177.0,0.10412394]
[1735752796713,0.15,94183.0,94177.0,0.10412394]
[1735752797298,0.212354,94182.0,94177.0,0.10412394]
[1735752797706,0.212354,94182.0,94177.0,0.10512394]
[1735752797904,0.212354,94182.0,94177.0,0.10412394]
[1735752798082,0.212363,94179.0,94177.0,0.10412394]
[1735752801324,0.212354,94182.0,94177.0,0.10412394]
[1735752802630,0.212354,94182.0,94179.0,0.023]
[1735752803249,0.212354,94182.0,94181.0,0.023]
[1735752803749,0.212354,94182.0,94179.0,0.023]
[1735752803950,0.212354,94182.0,94181.0,0.00521777]
[1735752804224,0.212354,94182.0,94179.0,0.023]
[1735752804456,0.212354,94182.0,94181.0,0.00521777]
[1735752804634,0.212354,94182.0,94179.0,0.023]
[1735752804789,0.212354,94182.0,94181.0,0.00521777]
[1735752804989,0.212354,94182.0,94179.0,0.023]
[1735752805189,0.212354,94182.0,94181.0,0.00521777]
[1735752805387,0.212354,94182.0,94179.0,0.023]
[1735752805640,0.212354,94182.0,94181.0,0.00521777]
[1735752805810,0.212354,94182.0,94179.0,0.023]
[1735752805991,0.212354,94182.0,94181.0,0.00521777]
[1735752806444,0.212354,94182.0,94179.0,0.023]
[1735752806653,0.212354,94182.0,94181.0,0.00522032]
[1735752806819,0.212354,94182.0,94179.0,0.023]
[1735752807043,0.212354,94182.0,94181.0,0.00522032]